bitfinex/quotes_SOLUSD_20240717
["timestamp","ask_amount","ask_price","bid_price","bid_amount"]
[1721195538741,8.04417082,161.79,161.72,29.37]
[1721195538934,8.04417082,161.79,161.7,6.3912008]
[1721195539130,8.04417082,161.79,161.71,0.17]
[1721195539861,1.54546603,161.78,161.71,0.17]
[1721195541025,8.04422022,161.79,161.71,1.40633618]
[1721195542148,6.4988,161.79,161.71,1.40633618]
[1721195542457,8.04422375,161.79,161.71,1.40633618]
[1721195543052,6.4988,161.79,161.71,11.40633728]
[1721195543361,6.4988,161.79,161.72,10.0]
[1721195543526,6.4988,161.79,161.73,1.40619135]
[1721195543728,16.6316,161.81,161.75,39.37]
[1721195543933,16.6316,161.81,161.76,1.40602364]
[1721195544149,6.6504,161.83,161.76,0.17]
[1721195545042,1.54494205,161.82,161.76,0.17]
[1721195545240,1.54494205,161.82,161.75,29.37]
[1721195545761,1.54494205,161.82,161.72,29.37]
[1721195545968,1.54494205,161.82,161.73,0.17]
[1721195546658,16.556,161.81,161.73,0.17]
[1721195546965,1.5453477,161.8,161.73,0.17]
[1721195547460,1.54532964,161.79,161.72,29.37]
[1721195547958,1.54542377,161.8,161.73,1.23633902]
[1721195548161,18.10129215,161.81,161.74,1.23623372]
[1721195549371,1.54525355,161.8,161.72,29.37]
[1721195549571,1.54525355,161.8,161.73,0.17]
[1721195549868,1.54524941,161.79,161.72,29.37]
[1721195550863,1.54541792,161.8,161.72,29.37]
[1721195551049,1.54541787,161.79,161.72,29.37]
[1721195551957,1.54541961,161.8,161.72,29.37]
[1721195552162,1.54541958,161.79,161.72,29.37]
[1721195552873,6.6464,161.78,161.71,6.39227569]
[1721195553032,1.54556484,161.77,161.71,6.39227569]
[1721195553959,1.54555418,161.76,161.68,29.37]
[1721195554461,15.9249,161.75,161.68,29.37]
[1721195555157,1.54578163,161.74,161.68,29.37]
[1721195560867,1.54586292,161.73,161.68,29.37]
[1721195561166,1.54586292,161.73,161.65,29.37]
[1721195561380,6.3058,161.72,161.66,0.17]
[1721195561742,1.54596183,161.71,161.65,29.37]
[1721195562250,1.54608348,161.71,161.68,14.7]
[1721195562446,1.54608348,161.71,161.69,14.7]
[1721195562863,6.3058,161.72,161.69,14.7]
[1721195563060,6.3058,161.72,161.7,14.7]
[1721195563573,6.3058,161.72,161.71,14.7]
[1721195564264,15.9249,161.75,161.71,14.7]
[1721195564468,15.9249,161.75,161.74,14.7]
[1721195565060,6.5369,161.76,161.74,14.7]
[1721195565273,6.5369,161.76,161.75,14.7]
[1721195566163,6.5369,161.76,161.68,58.8]
[1721195566359,6.5369,161.76,161.7,29.38]
[1721195566572,6.5369,161.76,161.71,1.2365425]
[1721195571071,6.5369,161.76,161.7,29.38]
[1721195571258,1.54567401,161.75,161.7,29.38]
[1721195571989,1.54567401,161.75,161.71,1.23662383]
[1721195572471,6.5369,161.76,161.71,1.23662383]
[1721195572653,1.54571276,161.75,161.7,29.38]
[1721195573457,6.5369,161.76,161.71,1.23657279]
[1721195574075,6.5369,161.76,161.7,29.38]
[1721195574478,6.5369,161.76,161.71,1.23656333]
[1721195574664,6.5369,161.76,161.7,29.38]
[1721195575369,6.5369,161.76,161.71,1.23656853]
[1721195575670,1.54571066,161.75,161.71,1.23656853]
[1721195575870,6.5369,161.76,161.72,1.2364841]
[1721195577184,6.5369,161.76,161.7,29.38]
[1721195577690,6.5369,161.76,161.71,1.23641069]
[1721195578059,6.5369,161.76,161.7,29.38]
[1721195578370,1.54567301,161.75,161.7,29.38]
[1721195579959,15.5208,161.74,161.68,6.39110658]
[1721195581981,1.54581984,161.73,161.68,6.39110658]
[1721195582376,1.54581984,161.73,161.67,29.38]
[1721195582562,1.54581984,161.73,161.68,1.2368046]
[1721195582779,15.5208,161.74,161.67,29.38]
[1721195584615,15.5208,161.74,161.67,39.38]
[1721195584982,15.5208,161.74,161.68,1.23668624]
[1721195585182,15.5208,161.74,161.67,39.38]
[1721195585384,15.5208,161.74,161.7,29.38]
[1721195586486,15.5208,161.74,161.67,29.38]
[1721195587394,15.5208,161.74,161.68,1.23672733]
[1721195587782,1.54592482,161.73,161.68,1.23672733]
[1721195587982,1.54592501,161.73,161.67,29.38]
[1721195588181,1.54592501,161.73,161.72,14.7]
[1721195589013,1.54592501,161.73,161.69,14.7]
[1721195589505,1.54592501,161.73,161.7,14.7]
[1721195590182,1.54592501,161.73,161.63,10.0]
[1721195590386,1.54592501,161.73,161.7,14.7]
[1721195592095,1.54592501,161.73,161.69,14.7]
[1721195592722,1.54592501,161.73,161.7,14.7]
[1721195594422,1.54592501,161.73,161.71,14.7]
[1721195595611,1.54592501,161.73,161.72,14.7]
[1721195596202,1.54592501,161.73,161.71,14.7]
[1721195596511,1.54605097,161.73,161.72,14.7]
[1721195596687,1.54605097,161.73,161.68,58.8]
[1721195597007,1.54605097,161.73,161.69,14.7]
[1721195597807,1.54605097,161.73,161.7,14.7]
[1721195598423,1.54605097,161.73,161.69,14.7]
[1721195599499,1.54605097,161.73,161.64,1.23695215]
[1721195599698,1.54605097,161.73,161.7,14.7]
[1721195601515,1.54605097,161.73,161.69,14.7]
[1721195601823,1.54605097,161.73,161.71,14.7]
[1721195602191,1.54605097,161.73,161.7,14.7]
[1721195605101,1.54605097,161.73,161.63,16.3988673]
[1721195605308,1.54605097,161.73,161.7,14.7]
[1721195606104,1.54605097,161.73,161.69,14.7]
[1721195606516,1.54605097,161.73,161.7,14.7]
[1721195608824,1.54605097,161.73,161.71,14.7]
[1721195609212,1.54605097,161.73,161.7,14.7]
[1721195610116,1.54605097,161.73,161.69,14.7]
[1721195611408,1.54605097,161.73,161.63,6.39734747]
[1721195611628,0.17,161.72,161.68,14.7]
[1721195611934,1.7162791,161.72,161.62,0.8379433]
[1721195612235,1.7162791,161.72,161.67,14.7]
[1721195612826,1.7162791,161.72,161.68,14.7]
[1721195616132,1.7162791,161.72,161.67,14.7]
[1721195619021,1.7162791,161.72,161.68,14.7]
[1721195619320,1.7162791,161.72,161.62,2.07500037]
[1721195619530,1.7162791,161.72,161.68,14.7]
[1721195620907,1.7162791,161.72,161.62,0.8379433]
[1721195621111,1.7162791,161.72,161.68,14.7]
[1721195621325,1.7162791,161.72,161.67,14.7]
[1721195623138,1.7162791,161.72,161.68,14.7]
[1721195627020,14.7,161.69,161.62,0.8379433]
[1721195627223,31.2369,161.64,161.62,0.8379433]
[1721195627436,16.24716948,161.63,161.62,0.8379433]
[1721195627738,16.41716948,161.63,161.62,0.8379433]
[1721195627921,22.75986948,161.63,161.62,0.8379433]
[1721195628131,22.92986948,161.63,161.52,6.39553541]
[1721195628436,22.92986948,161.63,161.49,15.9446]
[1721195628437,14.7,161.59,161.54,14.7]
[1721195628643,0.17,161.58,161.54,14.7]
[1721195629243,0.17,161.58,161.47,6.4385]
[1721195629408,14.87,161.58,161.52,14.7]
[1721195630242,1.5476971,161.57,161.52,14.7]
[1721195631128,1.5476971,161.57,161.53,14.7]
[1721195632248,1.5476971,161.57,161.48,7.6364647]
[1721195632426,1.5476971,161.57,161.53,14.7]
[1721195633942,1.5476971,161.57,161.48,6.39829303]
[1721195634147,1.5476971,161.57,161.53,14.7]
[1721195635044,1.5476971,161.57,161.54,14.7]
[1721195635259,1.54756972,161.56,161.54,14.7]
[1721195635429,1.71757204,161.58,161.54,14.7]
[1721195635854,1.71757204,161.58,161.55,14.7]
[1721195637535,1.71757204,161.58,161.54,14.7]
[1721195637739,14.7,161.59,161.57,14.7]
[1721195637740,1.54759421,161.59,161.57,14.7]
[1721195637938,1.54732211,161.61,161.52,14.7]
[1721195638130,6.3427,161.63,161.52,14.7]
[1721195638131,1.54722047,161.6,161.58,14.7]
[1721195638330,14.7,161.61,161.51,16.2585]
[1721195638534,1.54741968,161.6,161.48,6.39829303]
[1721195638760,14.7,161.59,161.54,14.7]
[1721195638937,1.54759432,161.58,161.54,14.7]
[1721195639268,1.54759432,161.57,161.54,14.7]
[1721195640147,1.54759288,161.56,161.54,14.7]
[1721195640340,1.54759288,161.58,161.54,14.7]
[1721195640554,1.54759215,161.57,161.54,14.7]
[1721195641071,1.71759155,161.59,161.55,14.7]
[1721195641364,1.54759155,161.59,161.57,14.7]
[1721195641550,0.17,161.6,161.56,14.7]
[1721195641755,1.54744687,161.6,161.56,14.7]
[1721195642452,1.54744687,161.6,161.57,14.7]
[1721195642662,14.7,161.61,161.52,14.7]
[1721195642857,1.54731371,161.6,161.49,6.56603634]
[1721195643045,0.17,161.59,161.55,14.7]
[1721195643249,1.71748536,161.59,161.54,14.7]
[1721195643563,16.41748536,161.59,161.54,14.7]
[1721195643935,16.41748536,161.59,161.53,14.7]
[1721195644292,16.41748536,161.59,161.54,14.7]
[1721195644469,1.71748536,161.59,161.54,14.7]
[1721195646379,31.3589,161.58,161.53,14.7]
[1721195646543,1.71771875,161.57,161.54,14.7]
[1721195646741,1.54771875,161.57,161.54,14.7]
[1721195646956,1.54771875,161.57,161.55,14.7]
[1721195647236,18.03644458,161.58,161.55,14.7]
[1721195647436,16.4889,161.58,161.56,14.7]
[1721195647870,16.4889,161.58,161.57,14.7]
[1721195648062,1.54742155,161.6,161.57,14.7]
[1721195648385,1.54729312,161.61,161.58,14.7]
[1721195648688,1.54716683,161.6,161.59,14.7]
[1721195648979,1.54713374,161.61,161.59,14.7]
[1721195649475,15.2566,161.62,161.6,14.7]
[1721195649476,1.54714299,161.62,161.6,14.7]
[1721195649647,1.54714299,161.62,161.61,14.7]
[1721195649961,6.3427,161.63,161.61,14.7]
[1721195650181,1.54696545,161.62,161.6,14.7]
[1721195650549,6.3427,161.63,161.6,14.7]
[1721195650754,1.54694594,161.62,161.6,14.7]
[1721195652854,6.3427,161.63,161.61,14.7]
[1721195653259,1.54693611,161.65,161.62,14.7]
[1721195653560,15.2134,161.66,161.49,15.7531]
[1721195653561,20.8871,161.63,161.49,15.7531]
[1721195653880,14.7,161.61,161.56,14.7]
[1721195654187,1.54729108,161.6,161.56,14.7]
[1721195654674,1.54729108,161.6,161.55,14.7]
[1721195655980,1.54729108,161.6,161.56,14.7]
[1721195656570,16.24729108,161.6,161.55,14.7]
[1721195657092,1.54729108,161.6,161.55,14.7]
[1721195657258,1.54729108,161.6,161.57,14.7]
[1721195657459,8.09869267,161.65,161.59,14.7]
[1721195657757,8.09869267,161.65,161.61,14.7]
[1721195657959,8.09869267,161.65,161.62,14.7]
[1721195658355,8.09869267,161.65,161.61,14.7]
[1721195658557,22.79869267,161.65,161.6,14.7]
[1721195658983,8.09869267,161.65,161.6,14.7]
[1721195659168,8.09869267,161.65,161.61,14.7]
[1721195659376,8.09869267,161.65,161.6,14.7]
[1721195659685,8.09869267,161.65,161.61,14.7]
[1721195660966,8.09869267,161.65,161.62,14.7]
[1721195661465,8.09869267,161.65,161.61,14.7]
[1721195662586,8.09869267,161.65,161.62,14.7]
[1721195662763,8.09869267,161.65,161.63,14.7]
[1721195662969,8.09869267,161.65,161.62,14.7]
[1721195663960,22.4355,161.71,161.59,10.0]
[1721195664164,1.54638826,161.7,161.66,14.7]
[1721195665187,1.54638826,161.7,161.61,1.23710129]
[1721195665188,1.54638826,161.7,161.67,14.7]
[1721195665393,1.54638826,161.7,161.68,14.7]
[1721195665689,22.4355,161.71,161.68,14.7]
[1721195665891,22.4355,161.71,161.7,14.7]
[1721195666698,22.4355,161.71,161.69,14.7]
[1721195667064,22.4355,161.71,161.61,25.325]
[1721195667065,1.5461569,161.7,161.68,14.7]
[1721195667981,22.3069,161.75,161.69,14.7]
[1721195668184,22.3069,161.75,161.7,14.7]
[1721195668368,22.3069,161.75,161.71,14.7]
[1721195668566,22.3069,161.75,161.72,14.7]
[1721195668801,22.3069,161.75,161.73,14.7]
[1721195669098,1.54587217,161.76,161.74,14.7]
[1721195669275,1.545729,161.78,161.73,14.7]
[1721195669473,1.545729,161.78,161.68,14.7]
[1721195669769,1.545729,161.78,161.74,14.7]
[1721195670464,22.426929,161.78,161.67,0.17]
[1721195670669,6.1817,161.77,161.72,14.7]
[1721195670890,1.54585252,161.76,161.72,14.7]
[1721195671098,1.54585252,161.76,161.71,14.7]
[1721195671389,1.54585252,161.76,161.72,14.7]
[1721195671784,14.87,161.75,161.61,35.325]
[1721195671962,14.7,161.74,161.69,14.7]
[1721195672168,1.54610161,161.73,161.69,14.7]
[1721195672476,1.54610161,161.73,161.7,14.7]
[1721195672691,1.71598481,161.75,161.71,14.7]
[1721195673067,1.71598481,161.75,161.7,14.7]
[1721195673462,16.41598481,161.75,161.7,14.7]
[1721195673696,1.71598481,161.75,161.71,14.7]
[1721195674279,1.71598481,161.75,161.72,14.7]
[1721195674485,0.17,161.75,161.72,14.7]
[1721195674686,1.5458749,161.74,161.69,1.23669992]
[1721195674897,1.54595346,161.73,161.71,14.7]
[1721195675073,1.71593374,161.75,161.71,14.7]
[1721195675801,1.54593374,161.75,161.72,14.7]
[1721195675971,1.54584431,161.77,161.72,14.7]
[1721195676171,16.41584224,161.76,161.65,10.0]
[1721195676373,16.41584224,161.76,161.71,14.7]
[1721195676990,1.71584224,161.76,161.72,14.7]
[1721195677587,7.89784224,161.76,161.72,14.7]
[1721195677791,22.59784224,161.76,161.71,14.7]
[1721195677995,1.5458484,161.75,161.71,14.7]
[1721195678865,1.5458484,161.75,161.66,1.23667896]
[1721195679106,0.17,161.74,161.71,14.7]
[1721195679292,1.54591436,161.74,161.71,14.7]
[1721195679495,1.54596138,161.73,161.71,14.7]
[1721195680170,1.54595885,161.75,161.71,14.7]
[1721195680374,7.72825885,161.75,161.71,14.7]
[1721195680582,22.42825885,161.75,161.7,14.7]
[1721195681167,7.72825885,161.75,161.69,14.7]
[1721195681366,14.87,161.74,161.69,14.7]
[1721195681587,1.54604746,161.73,161.69,14.7]
[1721195682885,16.24604746,161.73,161.68,14.7]
[1721195683090,1.54604746,161.73,161.69,14.7]
[1721195683805,0.17,161.74,161.7,14.7]
[1721195684101,1.71605399,161.74,161.7,14.7]
[1721195684394,1.54603382,161.75,161.72,14.7]
[1721195684603,36.24584605,161.77,161.72,14.7]
[1721195684771,1.54563767,161.76,161.68,14.7]
[1721195684979,21.54563088,161.77,161.74,14.7]
[1721195685191,1.54562302,161.76,161.74,14.7]
[1721195686008,20.0,161.78,161.73,14.7]
[1721195686009,1.54574208,161.77,161.73,14.7]
[1721195686374,1.54560554,161.76,161.73,14.7]
[1721195686574,1.54564139,161.77,161.73,14.7]
[1721195686786,1.54564139,161.77,161.74,14.7]
[1721195687096,1.54564139,161.77,161.73,14.7]
[1721195688508,1.54564139,161.77,161.74,14.7]
[1721195688678,1.54559463,161.78,161.74,14.7]
[1721195689071,1.54559463,161.78,161.75,14.7]
[1721195690284,1.54559463,161.78,161.74,14.7]
[1721195692711,16.24559463,161.78,161.67,16.2056]
[1721195692869,14.7,161.76,161.67,16.2056]
[1721195693069,1.5457663,161.75,161.71,14.7]
[1721195693304,16.41571841,161.77,161.67,16.2056]
[1721195693596,16.41571841,161.77,161.72,14.7]
[1721195694474,1.71571841,161.77,161.72,14.7]
[1721195695203,1.54571841,161.77,161.73,14.7]
[1721195695503,1.54571841,161.77,161.72,14.7]
[1721195696191,1.54571841,161.77,161.73,14.7]
[1721195697297,1.71566797,161.78,161.73,14.7]
[1721195697490,1.54566568,161.77,161.73,14.7]
[1721195697993,1.5455638,161.78,161.75,14.7]
[1721195698705,43.6059413,161.83,161.77,14.7]
[1721195698883,21.54528549,161.82,161.78,14.7]
[1721195700586,36.24528549,161.82,161.77,14.7]
[1721195701187,1.54528549,161.82,161.72,10.0]
[1721195701379,1.54528549,161.82,161.8,14.7]
[1721195701580,22.72619932,161.83,161.8,14.7]
[1721195701788,1.54503774,161.82,161.8,14.7]
[1721195702011,1.54503774,161.82,161.79,14.7]
[1721195702311,22.72628739,161.83,161.8,14.7]
[1721195702502,22.72613757,161.83,161.73,26.4818]
[1721195702712,1.54503805,161.82,161.79,14.7]
[1721195703091,22.7261382,161.83,161.8,14.7]
[1721195703289,1.54503774,161.84,161.8,14.7]
[1721195703700,22.42393774,161.84,161.79,14.7]
[1721195703914,6.1793,161.83,161.79,14.7]
[1721195704099,1.54515308,161.82,161.79,14.7]
[1721195704311,1.54515187,161.83,161.8,14.7]
[1721195704490,1.54515187,161.84,161.76,14.7]
[1721195704696,1.54515187,161.84,161.81,14.7]
[1721195705011,1.54493919,161.86,161.81,14.7]
[1721195705209,1.54493919,161.85,161.81,14.7]
[1721195705507,1.54493919,161.85,161.82,14.7]
[1721195705708,1.54479381,161.86,161.84,14.7]
[1721195707898,1.54479381,161.86,161.83,14.7]
[1721195708096,1.54477054,161.85,161.83,14.7]
[1721195708296,1.54477054,161.85,161.82,14.7]
[1721195709189,1.54476927,161.86,161.82,14.7]
[1721195709407,1.54476899,161.85,161.82,14.7]
[1721195709604,1.54476884,161.86,161.82,14.7]
[1721195709921,1.54476884,161.86,161.84,14.7]
[1721195711525,1.54476884,161.86,161.83,14.7]
[1721195712723,1.54476884,161.86,161.82,14.7]
[1721195714525,14.7,161.84,161.74,6.0328]
[1721195714698,1.5450519,161.83,161.78,14.7]
[1721195714893,1.54517237,161.83,161.78,14.7]
[1721195715094,1.54495226,161.84,161.8,14.7]
[1721195715918,1.54495226,161.84,161.81,14.7]
[1721195716114,1.54493325,161.85,161.81,14.7]
[1721195716820,1.54493325,161.85,161.82,14.7]
[1721195717030,1.54479987,161.86,161.82,14.7]
[1721195717321,1.54479879,161.85,161.81,14.7]
[1721195717929,1.54479879,161.85,161.82,14.7]
[1721195718319,1.54479007,161.86,161.82,14.7]
[1721195718521,1.54478873,161.85,161.82,14.7]
[1721195719610,1.54479466,161.86,161.82,14.7]
[1721195719809,1.54479247,161.85,161.82,14.7]
[1721195720811,21.6265,161.87,161.84,14.7]
[1721195721023,30.46298204,161.91,161.86,14.7]
[1721195721226,24.05749436,161.91,161.87,14.7]
[1721195721432,24.05749436,161.91,161.88,14.7]
[1721195722522,24.05749436,161.91,161.87,14.7]
[1721195723613,1.54479436,161.91,161.84,14.7]
[1721195723934,1.54425434,161.94,161.9,14.7]
[1721195724134,1.54425434,161.94,161.92,14.7]
[1721195724326,23.79593793,161.95,161.92,14.7]
[1721195724535,23.79593793,161.95,161.93,14.7]
[1721195724829,1.54389212,161.97,161.93,14.7]
[1721195725044,1.54389212,161.97,161.94,14.7]
[1721195725245,1.54389212,161.97,161.93,14.7]
[1721195725409,1.54389212,161.97,161.85,15.3054]
[1721195725410,14.7,161.95,161.85,15.3054]
[1721195725616,14.7,161.95,161.89,14.7]
[1721195725617,1.54402149,161.94,161.89,14.7]
[1721195725929,1.54402149,161.94,161.85,15.3054]
[1721195725930,14.7,161.93,161.85,15.3054]
[1721195726110,1.54424226,161.92,161.88,14.7]
[1721195727004,1.54424226,161.92,161.89,14.7]
[1721195727206,1.54419131,161.93,161.89,14.7]
[1721195727538,1.54419131,161.93,161.9,14.7]
[1721195727944,1.54406652,161.94,161.9,14.7]
[1721195728438,1.54402829,161.93,161.86,1.23522263]
[1721195728613,14.7,161.91,161.86,14.7]
[1721195728931,1.54430676,161.9,161.86,14.7]
[1721195729114,1.54430676,161.9,161.79,33.68760414]
[1721195729310,1.54430676,161.9,161.86,14.7]
[1721195729510,14.7,161.91,161.86,14.7]
[1721195729712,1.54430551,161.9,161.86,14.7]
[1721195730321,1.54430551,161.9,161.85,14.7]
[1721195731242,1.54430551,161.9,161.86,14.7]
[1721195733545,1.54430499,161.91,161.87,14.7]
[1721195734129,1.54430499,161.91,161.86,14.7]
[1721195735432,16.24422572,161.92,161.86,14.7]
[1721195735751,16.24422572,161.92,161.87,14.7]
[1721195736337,1.54421185,161.93,161.87,14.7]
[1721195736574,22.8306,161.94,161.91,14.7]
[1721195738460,22.8306,161.94,161.9,14.7]
[1721195738955,1.5438646,161.93,161.84,10.0]
[1721195739154,1.54408136,161.92,161.89,14.7]
[1721195739452,1.54411331,161.93,161.89,14.7]
[1721195739642,22.8306,161.94,161.91,14.7]
[1721195740319,1.54395263,161.95,161.91,14.7]
[1721195740660,14.7,161.96,161.91,14.7]
[1721195740949,1.54386481,161.95,161.91,14.7]
[1721195742650,1.54386481,161.95,161.9,14.7]
[1721195742651,16.24386481,161.95,161.9,14.7]
[1721195742849,1.5440166,161.94,161.89,14.7]
[1721195743427,1.5440166,161.94,161.82,10.0]
[1721195743428,14.7,161.93,161.82,10.0]
[1721195743629,16.2442387,161.92,161.87,14.7]
[1721195743843,1.54434749,161.91,161.87,14.7]
[1721195744149,16.24434749,161.91,161.86,14.7]
[1721195745447,14.7,161.9,161.85,14.7]
[1721195745627,1.54439149,161.89,161.85,14.7]
[1721195747258,16.24439039,161.9,161.85,14.7]
[1721195747455,1.54439039,161.9,161.86,14.7]
[1721195747756,1.54438692,161.89,161.86,14.7]
[1721195748336,1.54438936,161.9,161.86,14.7]
[1721195748656,1.54433923,161.91,161.86,14.7]
[1721195749230,16.24433923,161.91,161.86,14.7]
[1721195749729,1.54433923,161.91,161.86,14.7]
[1721195750541,14.7,161.9,161.85,14.7]
[1721195750854,1.54434188,161.89,161.85,14.7]
[1721195751647,1.54434188,161.89,161.86,14.7]
[1721195752038,1.54434205,161.9,161.86,14.7]
[1721195753657,6.1774,161.88,161.81,14.7]
[1721195753952,6.1774,161.88,161.79,6.40521357]
[1721195753953,16.24474572,161.87,161.82,14.7]
[1721195754154,1.54474093,161.86,161.82,14.7]
[1721195754334,16.24474093,161.86,161.81,14.7]
[1721195754535,1.54474093,161.85,161.81,14.7]
[1721195754952,1.54474093,161.85,161.8,14.7]
[1721195755148,1.54474093,161.85,161.81,14.7]
[1721195755828,14.7,161.87,161.81,14.7]
[1721195756061,1.54474685,161.86,161.82,14.7]
[1721195756770,1.5447549,161.85,161.82,14.7]
[1721195757732,1.54480121,161.86,161.82,14.7]
[1721195757933,1.54480114,161.85,161.82,14.7]
[1721195758240,39.15440114,161.85,161.8,14.7]
[1721195758549,39.15440114,161.85,161.74,260.8]
[1721195758758,39.15440114,161.85,161.79,14.7]
[1721195758957,1.54490776,161.84,161.79,14.7]
[1721195759663,16.24490776,161.84,161.73,6.40529826]
[1721195759957,14.7,161.82,161.77,14.7]
[1721195760160,1.54516259,161.81,161.77,14.7]
[1721195760364,1.54516259,161.81,161.73,6.40529826]
[1721195760659,14.7,161.79,161.74,14.7]
[1721195761045,1.54537046,161.78,161.7,2.28588136]
[1721195761249,16.24537046,161.78,161.73,14.7]
[1721195761439,1.54549884,161.77,161.73,14.7]
[1721195762037,14.7,161.78,161.73,14.7]
[1721195762363,1.54549931,161.8,161.7,2.28588136]
[1721195762566,1.54549569,161.79,161.7,2.28588136]
[1721195762740,1.54549569,161.79,161.71,0.17]
[1721195763058,1.54549557,161.81,161.71,30.79639645]
[1721195763254,1.54516179,161.83,161.72,0.17]
[1721195763446,1.54511806,161.82,161.73,11.23609444]
[1721195763640,1.54511127,161.83,161.74,1.40608902]
[1721195763848,1.54501355,161.82,161.74,0.17]
[1721195764236,1.54507111,161.84,161.74,0.17]
[1721195765061,1.54507111,161.84,161.74,29.73]
[1721195765631,22.9096,161.85,161.75,20.0]
[1721195765934,22.9096,161.85,161.76,0.34]
[1721195766151,1.54482889,161.84,161.76,0.34]
[1721195766353,1.54482889,161.84,161.76,0.17]
[1721195766603,1.54482889,161.84,161.75,0.17]
[1721195766872,22.9096,161.85,161.76,1.23596399]
[1721195767156,22.9096,161.85,161.77,40.62576433]
[1721195767362,21.8739,161.89,161.78,0.17]
[1721195767562,21.8739,161.89,161.78,1.40575027]
[1721195768268,21.8739,161.89,161.78,0.17]
[1721195768554,28.0509,161.89,161.78,0.17]
[1721195768971,21.8739,161.89,161.77,29.39]
[1721195769145,6.1778,161.87,161.78,1.23594174]
[1721195769460,1.71492715,161.86,161.77,29.39]
[1721195769775,1.54487914,161.85,161.77,29.39]
[1721195770361,1.54487914,161.85,161.78,0.17]
[1721195770556,1.54480043,161.87,161.78,1.40584035]
[1721195770757,1.54480043,161.87,161.78,0.17]
[1721195770983,27.647,161.83,161.74,15.9996]
[1721195771269,27.647,161.83,161.69,26.41347705]
[1721195771270,1.71534871,161.82,161.75,1.23627897]
[1721195771443,1.54534871,161.82,161.72,20.0]
[1721195771640,1.54534871,161.82,161.72,10.0]
[1721195772071,1.54534871,161.82,161.73,1.23612369]
[1721195772252,1.54534871,161.82,161.74,1.23624813]
[1721195772660,1.54534871,161.82,161.72,30.0]
[1721195772864,1.54534871,161.82,161.72,31.23616425]
[1721195773066,1.54534871,161.82,161.73,0.17]
[1721195773279,1.54534871,161.82,161.73,1.40618678]
[1721195774449,21.4674,161.83,161.74,29.39]
[1721195774762,21.4674,161.83,161.75,1.40601094]
[1721195774948,21.4674,161.83,161.75,0.17]
[1721195775349,21.4674,161.83,161.75,0.34]
[1721195775646,21.4674,161.83,161.76,11.2359344]
[1721195775845,21.4674,161.83,161.77,0.17]
[1721195776046,21.5413,161.89,161.77,30.79588117]
[1721195776275,1.54471571,161.88,161.77,45.4474]
[1721195777170,7.72211571,161.88,161.77,45.4474]
[1721195777747,1.54471571,161.88,161.77,45.4474]
[1721195778079,1.54471571,161.88,161.78,10.0]
[1721195778271,1.54471571,161.88,161.79,0.17]
[1721195779568,1.54471571,161.88,161.78,0.17]
[1721195779770,1.54471571,161.88,161.78,21.40577223]
[1721195779968,1.54471571,161.88,161.8,29.39]
[1721195780168,1.54471571,161.88,161.81,1.4056584]
[1721195780562,1.54471571,161.88,161.81,0.17]
[1721195781457,21.5413,161.89,161.81,0.17]
[1721195781658,21.5413,161.89,161.81,1.40555577]
[1721195782757,21.5413,161.89,161.81,0.17]
[1721195782981,21.5413,161.89,161.81,0.34]
[1721195783277,21.5413,161.89,161.82,1.23549051]
[1721195783487,21.5413,161.89,161.83,0.17]
[1721195783653,21.5413,161.89,161.81,0.34]
[1721195785576,21.5413,161.89,161.82,1.23545345]